[Event "XVI Memorial Lezcano Montalvo 2024"]
[Site "Gran Canaria"]
[Date "2024.03.27"]
[Round "5.25"]
[White "Segura Marsa, Andres"]
[Black "Perez Betancor, Jose Luis"]
[Result "1-0"]
[ECO "B00"]
[WhiteElo "1987"]
[BlackElo "1765"]
[Annotator "NA RC"]
[PlyCount "103"]
[EventDate "2024.03.23"]
[EventType "swiss"]
[EventCountry "ESP"]
[SourceTitle "playchess.com"]
[Source "ChessBase"]
[SourceQuality "1"]
[TimeControl "5400+30"]

1. e4 {[%emt 0:00:05]} b6 {[%emt 0:00:28]} 2. d4 {[%emt 0:00:10]} Bb7 {[%emt 0:00:06]} 3. Bd3 {[%emt 0:00:06]} e6 {[%emt 0:00:08]} 4. Nf3 {[%emt 0:00:11]} c5 {[%emt 0:00:10]} 5. d5 {[%emt 0:00:22]} exd5 {[%emt 0:00:59]} 6. exd5 {[%emt 0:00:09]} Bxd5 {[%emt 0:03:52]} 7. Nc3 {[%emt 0:00:21]} Be6 {[%emt 0:01:10]} 8. Bf4 {[%emt 0:00:38]} a6 {[%emt 0:01:22]} 9. Qe2 {[%emt 0:01:03]} Nf6 {[%emt 0:01:19]} 10. Ne5 {[%emt 0:08:22]} Be7 {[%emt 0:03:04]} 11. O-O-O {[%emt 0:00:13]} d5 {[%emt 0:02:03]} 12. Rhe1 {[%emt 0:15:54]} Qc8 {[%emt 0:03:43]} 13. g4 {[%emt 0:14:13]} Nc6 {[%emt 0:07:46]} 14. g5 {[%emt 0:04:55]} Nd4 {[%emt 0:02:14]} 15. Qe3 {[%emt 0:06:12]} Nh5 {[%emt 0:14:19]} 16. Nxd5 {[%emt 0:04:53]} Nxf4 {[%emt 0:08:42]} 17. Nxe7 {[%emt 0:01:01]} Nxd3+ {[%emt 0:01:11]} 18. Qxd3 {[%emt 0:01:56]} Kxe7 {[%emt 0:46:54]} 19. c3 {[%emt 0:00:51]} Nf5 {[%emt 0:00:00]} 20. Nc4 {[%emt 0:01:45]} Rd8 {[%emt 0:00:00]} 21. Qxf5 {[%emt 0:02:21]} Qc7 {[%emt 0:00:00]} 22. Qe4 {[%emt 0:05:12]} Kf8 {[%emt 0:00:00]} 23. Ne5 {[%emt 0:02:15]} Kg8 {[%emt 0:00:00]} 24. f4 {[%emt 0:05:53]} Rxd1+ {[%emt 0:00:00]} 25. Rxd1 {[%emt 0:00:26]} Rd8 {[%emt 0:00:00]} 26. Rxd8+ {[%emt 0:01:19]} Qxd8 {[%emt 0:00:00]} 27. Nc6 {[%emt 0:00:11]} Qe8 {[%emt 0:00:00]} 28. f5 {[%emt 0:01:23]} Bd7 {[%emt 0:00:00]} 29. Ne7+ {[%emt 0:00:10]} Kf8 {[%emt 0:00:00]} 30. f6 {[%emt 0:00:10]} Qb8 {[%emt 0:00:00]} 31. Nd5 {[%emt 0:11:06]} Qe8 {[%emt 0:00:00]} 32. Qxe8+ {[%emt 0:04:07]} Bxe8 {[%emt 0:00:00]} 33. Nxb6 {[%emt 0:00:09]} gxf6 {[%emt 0:00:00]} 34. gxf6 {[%emt 0:00:01]} h6 {[%emt 0:00:00]} 35. Kd2 {[%emt 0:00:20]} Kg8 {[%emt 0:00:00]} 36. Ke3 {[%emt 0:01:08]} Kh7 {[%emt 0:00:00]} 37. Kf4 {[%emt 0:00:09]} Kg6 {[%emt 0:00:00]} 38. Ke5 {[%emt 0:00:07]} Kg5 {[%emt 0:00:00]} 39. Nc4 {[%emt 0:01:40]} Bd7 {[%emt 0:00:00]} 40. Nd6 {[%emt 0:00:27]} Be6 {[%emt 0:00:00]} 41. Ne4+ {[%emt 0:00:09]} Kg4 {[%emt 0:00:00]} 42. Nxc5 {[%emt 0:00:12]} Bxa2 {[%emt 0:12:00]} 43. Nxa6 {[%emt 0:09:45]} Kh3 {[%emt 0:00:00]} 44. Kf4 {[%emt 0:00:00]} h5 {[%emt 0:00:00]} 45. Kg5 {[%emt 0:00:00]} Kxh2 {[%emt 0:00:00]} 46. Kxh5 {[%emt 0:00:00]} Kg3 {[%emt 0:00:00]} 47. Kh6 {[%emt 0:00:00]} Kf4 {[%emt 0:00:00]} 48. Kg7 {[%emt 0:00:00]} Ke5 {[%emt 0:03:00]} 49. Nc5 {[%emt 0:00:00]} Kd6 {[%emt 0:00:30]} 50. Ne4+ {[%emt 0:00:00]} Kd7 {[%emt 0:00:00]} 51. Ng5 {[%emt 0:00:00]} Ke8 {[%emt 0:00:00]} 52. b4 {[%emt 0:00:00]} 1-0

[Event "XVI Memorial Lezcano Montalvo 2024"]
[Site "Gran Canaria"]
[Date "2024.03.27"]
[Round "5.26"]
[White "Mukhi Talreja, Ishita Tina"]
[Black "Martinez Correa, Rafael"]
[Result "1/2-1/2"]
[ECO "D05"]
[WhiteElo "1755"]
[BlackElo "1597"]
[Annotator "NA RC"]
[PlyCount "54"]
[EventDate "2024.03.23"]
[EventType "swiss"]
[EventCountry "ESP"]
[SourceTitle "playchess.com"]
[Source "ChessBase"]
[SourceQuality "1"]
[TimeControl "5400+30"]

1. d4 {[%emt 0:00:02]} d5 {[%emt 0:00:12]} 2. Nf3 {[%emt 0:00:10]} Nf6 {[%emt 0:00:09]} 3. e3 {[%emt 0:00:08]} e6 {[%emt 0:00:52]} 4. b3 {[%emt 0:00:24]} c5 {[%emt 0:01:54]} 5. Bb2 {[%emt 0:00:24]} Nc6 {[%emt 0:01:28]} 6. Bd3 {[%emt 0:01:20]} Be7 {[%emt 0:02:44]} 7. O-O {[%emt 0:00:21]} O-O {[%emt 0:00:14]} 8. a3 {[%emt 0:00:29]} b6 {[%emt 0:02:04]} 9. Ne5 {[%emt 0:00:41]} Bb7 {[%emt 0:01:19]} 10. f4 {[%emt 0:00:19]} Ne4 {[%emt 0:04:14]} 11. Nd2 {[%emt 0:05:19]} f5 {[%emt 0:01:54]} 12. Rc1 {[%emt 0:11:21]} Nxe5 {[%emt 0:02:56]} 13. dxe5 {[%emt 0:03:07]} Qd7 {[%emt 0:03:55]} 14. Nf3 {[%emt 0:04:32]} Rfd8 {[%emt 0:01:37]} 15. Qe2 {[%emt 0:02:13]} Rac8 {[%emt 0:01:48]} 16. Rfd1 {[%emt 0:06:34]} Qc7 {[%emt 0:01:15]} 17. c4 {[%emt 0:04:10]} Rd7 {[%emt 0:04:17]} 18. Nd2 {[%emt 0:04:03]} Rcd8 {[%emt 0:01:23]} 19. Nxe4 {[%emt 0:05:18]} dxe4 {[%emt 0:01:51]} 20. Bc2 {[%emt 0:00:46]} Rxd1+ {[%emt 0:01:16]} 21. Rxd1 {[%emt 0:00:29]} Rd7 {[%emt 0:00:38]} 22. Qh5 {[%emt 0:04:10]} Qd8 {[%emt 0:01:12]} 23. Rxd7 {[%emt 0:01:46]} Qxd7 {[%emt 0:00:11]} 24. Bc3 {[%emt 0:03:26]} g6 {[%emt 0:02:23]} 25. Qe2 {[%emt 0:03:39]} Ba6 {[%emt 0:01:43]} 26. a4 {[%emt 0:03:18]} Bb7 {[%emt 0:01:39]} 27. a5 {[%emt 0:03:55]} Ba6 {[%emt 0:02:26]} 1/2-1/2

[Event "XVI Memorial Lezcano Montalvo 2024"]
[Site "Gran Canaria"]
[Date "2024.03.27"]
[Round "5.27"]
[White "Grube, Kurt"]
[Black "Lizzul Coppe, Mirko"]
[Result "0-1"]
[ECO "A33"]
[WhiteElo "1773"]
[BlackElo "2027"]
[Annotator "NA RC"]
[PlyCount "62"]
[EventDate "2024.03.23"]
[EventType "swiss"]
[EventCountry "ESP"]
[SourceTitle "playchess.com"]
[Source "ChessBase"]
[SourceQuality "1"]
[TimeControl "5400+30"]

1. c4 {[%emt 0:01:54]} c5 {[%emt 0:00:08]} 2. Nf3 {[%emt 0:00:09]} Nc6 {[%emt 0:00:21]} 3. Nc3 {[%emt 0:00:06]} Nf6 {[%emt 0:00:41]} 4. d4 cxd4 5. Nxd4 {[%emt 0:00:28]} e6 {[%emt 0:00:56]} 6. a3 {[%emt 0:01:41]} Bc5 {[%emt 1:31:24]} 7. e3 {[%emt 0:01:10]} O-O {[%emt 0:00:00]} 8. Be2 {[%emt 1:29:02]} d5 {[%emt 0:01:00]} 9. Nxc6 {[%emt 0:00:30]} bxc6 {[%emt 0:00:00]} 10. b4 {[%emt 0:00:30]} Bb6 {[%emt 0:01:00]} 11. O-O {[%emt 0:00:30]} Qe7 {[%emt 0:00:30]} 12. c5 {[%emt 0:00:30]} Bc7 {[%emt 0:00:30]} 13. Bb2 {[%emt 0:00:30]} e5 {[%emt 0:00:30]} 14. Re1 {[%emt 0:00:30]} e4 {[%emt 0:00:00]} 15. f3 exf3 {[%emt 0:01:00]} 16. Bxf3 {[%emt 0:01:00]} h5 {[%emt 0:00:30]} 17. Qe2 {[%emt 0:00:30]} Qe5 {[%emt 0:00:00]} 18. g3 {[%emt 0:00:00]} Qg5 {[%emt 0:01:00]} 19. Qf2 {[%emt 0:01:00]} h4 {[%emt 0:00:30]} 20. Ne2 {[%emt 0:00:30]} hxg3 {[%emt 0:00:30]} 21. hxg3 {[%emt 0:00:30]} Ng4 {[%emt 0:00:00]} 22. Bxg4 {[%emt 0:00:00]} Qxg4 {[%emt 0:00:00]} 23. Rf1 {[%emt 0:00:00]} Ba6 {[%emt 0:00:00]} 24. Rfe1 {[%emt 0:00:00]} Rae8 {[%emt 0:00:00]} 25. Kg2 {[%emt 0:00:00]} Bd3 {[%emt 0:00:00]} 26. Nf4 {[%emt 0:00:00]} Be4+ {[%emt 0:00:00]} 27. Kh2 {[%emt 0:00:00]} Re6 {[%emt 0:00:00]} 28. Kg1 {[%emt 0:00:00]} Rh6 {[%emt 0:00:00]} 29. Ng2 {[%emt 0:00:00]} Bxg3 {[%emt 0:00:00]} 30. Qe2 {[%emt 0:00:00]} Rh1+ {[%emt 0:00:00]} 31. Kxh1 {[%emt 0:00:00]} Qh3+ {[%emt 0:00:00]} 0-1

[Event "XVI Memorial Lezcano Montalvo 2024"]
[Site "Gran Canaria"]
[Date "2024.03.27"]
[Round "5.28"]
[White "Lorenzo Ventura, Abel"]
[Black "Sarmiento Afonso, Santiago"]
[Result "1-0"]
[ECO "A48"]
[WhiteElo "1772"]
[BlackElo "2023"]
[Annotator "RC"]
[PlyCount "149"]
[EventDate "2024.03.23"]
[EventType "swiss"]
[EventCountry "ESP"]
[SourceTitle "playchess.com"]
[Source "ChessBase"]
[SourceQuality "1"]
[TimeControl "5400+30"]

1. d4 {[%emt 0:00:38]} c5 {[%emt 0:01:46]} 2. e3 {[%emt 1:30:52]} Nf6 {[%emt 1:29:44]} 3. Nf3 {[%emt 0:00:30]} g6 {[%emt 0:00:30]} 4. c3 {[%emt 0:00:30]} Bg7 {[%emt 0:00:30]} 5. Bd3 {[%emt 0:00:30]} b6 {[%emt 0:00:30]} 6. O-O {[%emt 0:00:30]} Bb7 {[%emt 0:00:30]} 7. Re1 {[%emt 0:00:30]} O-O {[%emt 0:00:30]} 8. Nbd2 {[%emt 0:00:00]} d5 {[%emt 0:00:00]} 9. h3 {[%emt 0:00:00]} Nbd7 {[%emt 0:00:00]} 10. a4 {[%emt 0:01:30]} a5 {[%emt 0:01:30]} 11. e4 {[%emt 0:00:30]} dxe4 {[%emt 0:00:30]} 12. Nxe4 {[%emt 0:00:30]} cxd4 {[%emt 0:00:30]} 13. Nxd4 {[%emt 0:00:30]} Nc5 {[%emt 0:00:30]} 14. Nxc5 {[%emt 0:00:30]} bxc5 {[%emt 0:00:30]} 15. Nf3 {[%emt 0:00:30]} Qc7 {[%emt 0:00:30]} 16. Qe2 {[%emt 0:00:30]} Rad8 {[%emt 0:00:30]} 17. Bb5 {[%emt 0:00:00]} e6 {[%emt 0:00:00]} 18. Bg5 {[%emt 0:00:00]} Rd5 {[%emt 0:00:00]} 19. Rad1 {[%emt 0:00:00]} Rfd8 {[%emt 0:00:00]} 20. Bh4 {[%emt 0:00:00]} Rxd1 {[%emt 0:00:00]} 21. Rxd1 {[%emt 0:00:00]} Rd5 {[%emt 0:00:00]} 22. Bg3 {[%emt 0:00:00]} Qd8 {[%emt 0:00:00]} 23. Rxd5 {[%emt 0:00:00]} exd5 {[%emt 0:00:00]} 24. Qe5 {[%emt 0:00:00]} Ne4 {[%emt 0:00:00]} 25. Qc7 {[%emt 0:00:00]} Qxc7 {[%emt 0:00:00]} 26. Bxc7 {[%emt 0:00:00]} c4 {[%emt 0:00:00]} 27. Bxa5 {[%emt 0:00:00]} Bh6 {[%emt 0:00:00]} 28. Nd4 {[%emt 0:00:00]} Bc1 {[%emt 0:00:00]} 29. b3 {[%emt 0:00:00]} cxb3 {[%emt 0:02:52]} 30. Nxb3 {[%emt 0:00:00]} Bb2 {[%emt 0:00:06]} 31. c4 {[%emt 0:00:00]} dxc4 {[%emt 0:00:45]} 32. Bxc4 {[%emt 0:00:00]} Bc6 {[%emt 0:01:06]} 33. Bb5 {[%emt 0:00:00]} Bd5 {[%emt 0:00:07]} 34. Nd2 {[%emt 0:00:00]} Nc5 {[%emt 0:00:13]} 35. Bb4 {[%emt 0:00:00]} Ne6 {[%emt 0:00:52]} 36. Bf1 {[%emt 0:00:48]} Bd4 {[%emt 0:00:32]} 37. Bd6 {[%emt 0:02:26]} Nd8 {[%emt 0:01:55]} 38. Ba6 {[%emt 0:00:58]} Kg7 {[%emt 0:00:25]} 39. Nc4 {[%emt 0:00:43]} Bc3 {[%emt 0:00:39]} 40. Be5+ {[%emt 0:01:16]} Bxe5 {[%emt 0:00:05]} 41. Nxe5 {[%emt 0:00:23]} Kf6 {[%emt 0:00:15]} 42. Ng4+ {[%emt 0:00:21]} Ke7 {[%emt 0:00:25]} 43. Bc8 {[%emt 0:02:28]} h5 {[%emt 0:01:15]} 44. Ne3 {[%emt 0:00:20]} Bb3 {[%emt 0:00:06]} 45. a5 {[%emt 0:00:38]} Nc6 {[%emt 0:00:09]} 46. a6 {[%emt 0:00:17]} Kd6 {[%emt 0:00:18]} 47. Bb7 {[%emt 0:00:17]} Na7 {[%emt 0:00:29]} 48. Kh2 {[%emt 0:00:30]} Be6 {[%emt 0:02:13]} 49. Kg3 {[%emt 0:00:08]} Ke5 {[%emt 0:00:21]} 50. Nc2 {[%emt 0:00:57]} Bc4 {[%emt 0:01:52]} 51. f4+ {[%emt 0:00:42]} Kd6 {[%emt 0:00:00]} 52. Kh4 {[%emt 0:00:59]} Bd3 {[%emt 0:00:00]} 53. Ne1 {[%emt 0:01:12]} Bc4 {[%emt 0:00:04]} 54. Kg5 {[%emt 0:00:45]} Ke7 {[%emt 0:00:10]} 55. Nf3 {[%emt 0:01:14]} Bd3 {[%emt 0:00:13]} 56. Nd4 {[%emt 0:00:54]} f6+ {[%emt 0:00:22]} 57. Kh4 {[%emt 0:00:39]} Kd6 {[%emt 0:00:35]} 58. Kg3 {[%emt 0:01:01]} g5 {[%emt 0:00:37]} 59. fxg5 {[%emt 0:00:15]} fxg5 {[%emt 0:00:02]} 60. Nf3 {[%emt 0:00:13]} Ke7 {[%emt 0:02:57]} 61. Nxg5 {[%emt 0:02:06]} Kf6 {[%emt 0:00:30]} 62. Nf3 {[%emt 0:00:30]} Nb5 {[%emt 0:00:30]} 63. Kh4 {[%emt 0:00:30]} Bg6 {[%emt 0:00:30]} 64. g4 {[%emt 0:00:30]} hxg4 {[%emt 0:00:00]} 65. hxg4 {[%emt 0:00:00]} Bd3 {[%emt 0:00:00]} 66. g5+ {[%emt 0:00:00]} Kg7 {[%emt 0:00:00]} 67. Ne5 {[%emt 0:00:03]} Bf5 {[%emt 0:00:00]} 68. Nc6 {[%emt 0:01:13]} Be4 {[%emt 0:00:00]} 69. Nd8 {[%emt 0:00:20]} Bf5 {[%emt 0:00:00]} 70. Bg2 {[%emt 0:00:15]} Bc8 {[%emt 0:00:00]} 71. Bb7 {[%emt 0:01:39]} Bd7 {[%emt 0:04:00]} 72. Nc6 {[%emt 0:00:00]} Bxc6 {[%emt 0:00:00]} 73. Bxc6 {[%emt 0:00:00]} Na7 {[%emt 0:00:00]} 74. Be4 {[%emt 0:00:00]} Nc8 {[%emt 0:00:00]} 75. Kg4 {[%emt 0:00:00]} 1-0

[Event "XVI Memorial Lezcano Montalvo 2024"]
[Site "Gran Canaria"]
[Date "2024.03.27"]
[Round "5.29"]
[White "Garcia Almeida, Valeria"]
[Black "Perez Garcia, Jimena"]
[Result "0-1"]
[ECO "E16"]
[WhiteElo "1682"]
[BlackElo "1992"]
[Annotator "NA RC"]
[PlyCount "100"]
[EventDate "2024.03.23"]
[EventType "swiss"]
[EventCountry "ESP"]
[SourceTitle "playchess.com"]
[Source "ChessBase"]
[SourceQuality "1"]
[TimeControl "5400+30"]

1. c4 {[%emt 0:00:06]} Nf6 {[%emt 0:00:25]} 2. Nc3 {[%emt 0:00:47]} e6 {[%emt 0:00:17]} 3. d4 {[%emt 0:02:01]} Bb4 {[%emt 0:00:30]} 4. Bd2 {[%emt 0:02:20]} O-O {[%emt 0:03:14]} 5. Nf3 {[%emt 0:02:20]} b6 {[%emt 0:00:47]} 6. g3 {[%emt 0:03:53]} Bb7 {[%emt 0:01:40]} 7. Bg2 {[%emt 0:01:42]} d6 {[%emt 0:05:44]} 8. O-O {[%emt 0:03:58]} Nbd7 {[%emt 0:00:56]} 9. Qc2 {[%emt 0:06:39]} Bxc3 {[%emt 0:15:14]} 10. Bxc3 {[%emt 0:02:04]} Be4 {[%emt 0:16:46]} 11. Qd2 {[%emt 0:02:35]} h6 {[%emt 0:00:43]} 12. Ne1 {[%emt 0:14:33]} Bxg2 {[%emt 0:09:08]} 13. Nxg2 {[%emt 0:00:50]} Ne4 {[%emt 0:03:25]} 14. Qc2 {[%emt 0:53:42]} Nxc3 {[%emt 0:02:47]} 15. Qxc3 {[%emt 0:00:00]} Rc8 {[%emt 0:00:24]} 16. Rfd1 {[%emt 0:00:00]} Qe8 {[%emt 0:07:13]} 17. Rac1 {[%emt 0:00:00]} f5 {[%emt 0:01:13]} 18. e3 {[%emt 0:00:00]} g5 {[%emt 0:06:30]} 19. Qd2 {[%emt 0:00:00]} Qh5 {[%emt 0:00:53]} 20. f4 {[%emt 0:00:00]} Nf6 {[%emt 0:02:34]} 21. Ne1 {[%emt 0:00:00]} Rce8 {[%emt 0:04:43]} 22. Nd3 {[%emt 0:00:00]} Ng4 {[%emt 0:05:50]} 23. Re1 {[%emt 0:00:00]} Nf6 {[%emt 0:03:49]} 24. Qe2 {[%emt 0:00:00]} Qg6 {[%emt 0:00:31]} 25. Qg2 {[%emt 0:00:00]} Kh7 {[%emt 0:04:09]} 26. Re2 {[%emt 0:00:00]} Qg7 {[%emt 0:02:02]} 27. Kh1 {[%emt 0:00:00]} Ne4 {[%emt 0:02:33]} 28. Qg1 {[%emt 0:00:00]} Qd7 {[%emt 0:00:00]} 29. Qg2 {[%emt 0:00:00]} Qa4 {[%emt 0:00:04]} 30. b3 {[%emt 0:00:12]} Qd7 {[%emt 0:00:18]} 31. Ree1 {[%emt 0:00:57]} a5 {[%emt 0:00:31]} 32. a4 {[%emt 0:00:24]} Qg7 {[%emt 0:00:53]} 33. Qb2 {[%emt 0:02:47]} Qg6 {[%emt 0:00:28]} 34. Qg2 {[%emt 0:00:18]} Rd8 {[%emt 0:00:36]} 35. Re2 {[%emt 0:00:29]} Rfe8 {[%emt 0:00:10]} 36. Rec2 {[%emt 0:01:32]} c5 {[%emt 0:00:58]} 37. Re1 {[%emt 0:01:05]} Qg7 {[%emt 0:00:18]} 38. Qg1 {[%emt 0:00:23]} Kh8 {[%emt 0:00:32]} 39. Ree2 {[%emt 0:00:55]} Kg8 {[%emt 0:00:24]} 40. Re1 {[%emt 0:00:05]} Kf7 {[%emt 0:00:34]} 41. h3 {[%emt 0:01:07]} Qf6 {[%emt 0:00:24]} 42. Kh2 {[%emt 0:00:22]} e5 {[%emt 0:00:41]} 43. dxe5 {[%emt 0:00:28]} dxe5 {[%emt 0:00:05]} 44. Nxe5+ {[%emt 0:00:36]} Rxe5 {[%emt 0:00:05]} 45. fxe5 {[%emt 0:00:05]} Qxe5 {[%emt 0:00:03]} 46. Rf1 {[%emt 0:01:18]} Kg6 {[%emt 0:00:15]} 47. Rb1 {[%emt 0:01:27]} Rd3 {[%emt 0:00:36]} 48. Rg2 {[%emt 0:00:38]} Nd2 {[%emt 0:00:39]} 49. Rxd2 {[%emt 0:01:14]} Rxd2+ {[%emt 0:00:01]} 50. Kh1 {[%emt 0:00:07]} Qe4+ {[%emt 0:00:04]} 0-1

[Event "XVI Memorial Lezcano Montalvo 2024"]
[Site "Gran Canaria"]
[Date "2024.03.27"]
[Round "5.30"]
[White "Macias Reyes, Jose Luis"]
[Black "Camino Carrio, Nicanor"]
[Result "0-1"]
[ECO "A48"]
[WhiteElo "1677"]
[BlackElo "1962"]
[Annotator "NA RC"]
[PlyCount "60"]
[EventDate "2024.03.23"]
[EventType "swiss"]
[EventCountry "ESP"]
[SourceTitle "playchess.com"]
[Source "ChessBase"]
[SourceQuality "1"]
[TimeControl "5400+30"]

1. d4 {[%emt 0:00:03]} Nf6 {[%emt 0:00:27]} 2. Bf4 {[%emt 0:00:11]} g6 {[%emt 0:00:33]} 3. e3 {[%emt 0:00:08]} Bg7 {[%emt 0:00:10]} 4. Nf3 {[%emt 0:00:21]} O-O {[%emt 0:00:34]} 5. Be2 {[%emt 0:00:24]} d6 {[%emt 0:00:59]} 6. O-O {[%emt 0:02:31]} Nc6 {[%emt 0:01:29]} 7. h3 {[%emt 0:01:10]} Nd7 {[%emt 0:00:20]} 8. Nc3 {[%emt 0:01:19]} e5 {[%emt 0:00:27]} 9. Bg5 {[%emt 0:00:54]} f6 {[%emt 0:00:15]} 10. Bh4 {[%emt 0:00:47]} g5 {[%emt 0:00:13]} 11. Bg3 {[%emt 0:00:09]} Kh8 {[%emt 0:00:32]} 12. Nd5 {[%emt 0:03:31]} f5 {[%emt 0:02:15]} 13. dxe5 {[%emt 0:10:45]} Ndxe5 {[%emt 0:05:23]} 14. Nd4 {[%emt 0:06:29]} f4 {[%emt 0:04:32]} 15. Bh2 {[%emt 0:13:53]} Ng6 {[%emt 0:04:11]} 16. c3 {[%emt 0:06:39]} Nce5 {[%emt 0:02:02]} 17. exf4 {[%emt 0:06:49]} gxf4 {[%emt 0:00:00]} 18. Nf3 {[%emt 0:08:30]} a5 {[%emt 0:01:31]} 19. Nxe5 {[%emt 0:35:27]} dxe5 {[%emt 1:14:07]} 20. c4 {[%emt 0:00:00]} e4 {[%emt 0:00:00]} 21. Bg4 {[%emt 0:00:00]} Bxb2 {[%emt 0:00:00]} 22. Rb1 {[%emt 0:00:00]} Bg7 {[%emt 0:00:00]} 23. Bxc8 {[%emt 0:00:00]} Qxc8 {[%emt 0:00:00]} 24. Qc2 {[%emt 0:00:00]} f3 {[%emt 0:00:00]} 25. Qxe4 {[%emt 0:00:00]} fxg2 {[%emt 0:00:00]} 26. Qxg2 {[%emt 0:00:00]} Nh4 {[%emt 0:00:00]} 27. Qg3 {[%emt 0:00:00]} Nf3+ {[%emt 0:00:00]} 28. Kh1 {[%emt 0:00:00]} Ra6 {[%emt 0:00:00]} 29. Qxc7 {[%emt 0:03:46]} Qxh3 {[%emt 0:00:00]} 30. Rxb7 {[%emt 0:00:52]} Qxf1+ {[%emt 0:05:30]} 0-1

[Event "XVI Memorial Lezcano Montalvo 2024"]
[Site "Gran Canaria"]
[Date "2024.03.27"]
[Round "5.31"]
[White "Ramirez Maillo, Juan Adonay"]
[Black "Quevedo Olivares, Carlos Tomas"]
[Result "1-0"]
[ECO "B08"]
[WhiteElo "1918"]
[BlackElo "1763"]
[Annotator "NA RC"]
[PlyCount "103"]
[EventDate "2024.03.23"]
[EventType "swiss"]
[EventCountry "ESP"]
[SourceTitle "playchess.com"]
[Source "ChessBase"]
[SourceQuality "1"]
[TimeControl "5400+30"]

1. e4 {[%emt 0:00:04]} g6 {[%emt 0:00:05]} 2. d4 {[%emt 0:00:09]} Bg7 {[%emt 0:00:04]} 3. Nc3 {[%emt 0:00:06]} d6 {[%emt 0:00:17]} 4. Nf3 {[%emt 0:00:07]} Nf6 {[%emt 0:00:31]} 5. h3 {[%emt 0:01:00]} O-O {[%emt 0:00:27]} 6. Be3 {[%emt 0:00:22]} c6 {[%emt 0:00:21]} 7. a4 {[%emt 0:00:06]} Qa5 {[%emt 0:06:53]} 8. Bd3 {[%emt 0:03:31]} d5 {[%emt 0:09:18]} 9. e5 {[%emt 0:03:14]} Ne4 {[%emt 0:04:09]} 10. Bxe4 {[%emt 0:01:51]} dxe4 {[%emt 0:00:05]} 11. Nd2 {[%emt 0:00:14]} c5 {[%emt 0:07:46]} 12. Nb3 {[%emt 0:02:37]} Qb4 {[%emt 0:03:23]} 13. Nxc5 {[%emt 0:01:35]} Nc6 {[%emt 0:05:22]} 14. O-O {[%emt 0:02:02]} Rd8 {[%emt 0:02:28]} 15. Nb5 {[%emt 0:05:15]} Bxe5 {[%emt 0:08:38]} 16. Bd2 {[%emt 0:02:18]} Qc4 {[%emt 0:00:17]} 17. b3 {[%emt 0:00:21]} Qxc5 {[%emt 0:08:58]} 18. dxc5 {[%emt 0:00:30]} Bxa1 {[%emt 0:00:03]} 19. Qxa1 {[%emt 0:00:49]} Rxd2 {[%emt 0:00:11]} 20. Rd1 {[%emt 0:01:46]} Rxd1+ {[%emt 0:03:05]} 21. Qxd1 {[%emt 0:00:07]} Be6 {[%emt 0:03:19]} 22. Qe1 {[%emt 0:05:57]} Bf5 {[%emt 0:06:37]} 23. g4 {[%emt 0:01:17]} Ne5 {[%emt 0:00:00]} 24. Kg2 {[%emt 0:01:53]} Bd7 {[%emt 0:00:19]} 25. Nd4 {[%emt 0:04:17]} f5 {[%emt 0:01:35]} 26. gxf5 {[%emt 0:00:10]} gxf5 {[%emt 0:00:12]} 27. Qe3 {[%emt 0:00:30]} Kf7 {[%emt 0:29:37]} 28. Qf4 {[%emt 0:04:15]} Rg8+ {[%emt 0:00:00]} 29. Kf1 {[%emt 0:00:15]} Kf6 {[%emt 0:00:00]} 30. Qh4+ {[%emt 0:08:38]} Kf7 {[%emt 0:00:00]} 31. Qxh7+ {[%emt 0:00:35]} Rg7 {[%emt 0:00:00]} 32. Qh5+ {[%emt 0:00:22]} Kf6 {[%emt 0:00:00]} 33. Qh4+ {[%emt 0:00:17]} Kf7 {[%emt 0:00:00]} 34. Qh5+ {[%emt 0:02:07]} Kf6 {[%emt 0:00:00]} 35. Qh8 {[%emt 0:01:06]} Ng6 {[%emt 0:00:00]} 36. Qd8 {[%emt 0:02:23]} Ne5 {[%emt 0:00:00]} 37. Qf8+ {[%emt 0:00:54]} Kg6 {[%emt 0:00:00]} 38. h4 {[%emt 0:01:23]} Rf7 {[%emt 0:00:00]} 39. Qg8+ {[%emt 0:00:13]} Rg7 {[%emt 0:00:00]} 40. h5+ {[%emt 0:00:05]} Kf6 {[%emt 0:00:00]} 41. Qf8+ {[%emt 0:01:33]} Nf7 {[%emt 0:00:00]} 42. Ne2 {[%emt 0:07:46]} Rh7 {[%emt 0:00:00]} 43. Nf4 {[%emt 0:01:34]} Bc6 {[%emt 0:00:00]} 44. Qc8 {[%emt 0:02:52]} Ng5 {[%emt 0:02:22]} 45. b4 {[%emt 0:01:09]} a6 {[%emt 0:00:15]} 46. c4 {[%emt 0:00:48]} Ke5 {[%emt 0:01:06]} 47. Qc7+ {[%emt 0:01:06]} Kd4 {[%emt 0:00:41]} 48. b5 {[%emt 0:00:54]} e5 {[%emt 0:00:52]} 49. Qd8+ {[%emt 0:01:55]} Bd7 {[%emt 0:01:24]} 50. Qxg5 {[%emt 0:01:05]} exf4 {[%emt 0:00:15]} 51. Qg6 {[%emt 0:00:26]} Re7 {[%emt 0:00:19]} 52. Qd6+ {[%emt 0:00:12]} 1-0

[Event "XVI Memorial Lezcano Montalvo 2024"]
[Site "Gran Canaria"]
[Date "2024.03.27"]
[Round "5.32"]
[White "Garbezza, Davide"]
[Black "Santos Falcon, Jose"]
[Result "1-0"]
[ECO "E16"]
[WhiteElo "1888"]
[BlackElo "1749"]
[Annotator "NA RC"]
[PlyCount "61"]
[EventDate "2024.03.23"]
[EventType "swiss"]
[EventCountry "ESP"]
[SourceTitle "playchess.com"]
[Source "ChessBase"]
[SourceQuality "1"]
[TimeControl "5400+30"]

1. d4 {[%emt 0:00:04]} Nf6 {[%emt 0:00:50]} 2. Nf3 {[%emt 0:00:07]} e6 {[%emt 0:00:23]} 3. c4 {[%emt 0:00:16]} b6 {[%emt 0:00:27]} 4. g3 {[%emt 0:00:13]} Bb7 {[%emt 0:00:12]} 5. Bg2 {[%emt 0:00:19]} d5 {[%emt 0:00:26]} 6. O-O {[%emt 0:00:47]} Bd6 {[%emt 0:01:10]} 7. b3 {[%emt 0:03:36]} O-O {[%emt 0:00:29]} 8. Bb2 {[%emt 0:00:27]} Nbd7 {[%emt 0:00:52]} 9. Ne5 {[%emt 0:05:26]} c5 {[%emt 0:02:37]} 10. e3 {[%emt 0:00:33]} Qc7 {[%emt 0:02:19]} 11. Nxd7 {[%emt 0:02:34]} Nxd7 {[%emt 0:01:29]} 12. Nc3 {[%emt 0:01:27]} cxd4 {[%emt 0:07:33]} 13. Nb5 {[%emt 0:02:32]} Qb8 {[%emt 0:01:34]} 14. Nxd6 {[%emt 0:01:00]} Qxd6 {[%emt 0:00:07]} 15. Qxd4 {[%emt 0:01:55]} Nf6 {[%emt 0:04:20]} 16. cxd5 {[%emt 0:11:18]} exd5 {[%emt 0:04:09]} 17. e4 {[%emt 0:09:49]} Qe6 {[%emt 0:12:21]} 18. exd5 {[%emt 0:09:25]} Bxd5 {[%emt 0:00:28]} 19. Rfe1 {[%emt 0:02:01]} Qc6 {[%emt 0:02:00]} 20. Rac1 {[%emt 0:01:03]} Qb7 {[%emt 0:00:30]} 21. Bf3 {[%emt 0:46:08]} Be4 22. Bxe4 {[%emt 0:00:00]} Qc6 {[%emt 0:57:14]} 23. Bd5 Qxd5 {[%emt 0:00:00]} 24. Qf4 {[%emt 0:00:00]} Nh5 {[%emt 0:00:00]} 25. Qg4 {[%emt 0:00:00]} g6 {[%emt 0:00:00]} 26. Rcd1 {[%emt 0:00:00]} Qc6 {[%emt 0:00:00]} 27. Qd4 {[%emt 0:00:00]} f6 {[%emt 0:00:00]} 28. Re7 {[%emt 0:00:00]} Rf7 {[%emt 0:00:00]} 29. Rc1 {[%emt 0:00:00]} Qxc1+ {[%emt 0:00:00]} 30. Bxc1 {[%emt 0:00:00]} Rxe7 {[%emt 0:00:00]} 31. Qd5+ {[%emt 0:00:00]} 1-0